fUSD/lending_fUSD_20250606
["ID","MTS","AMOUNT","RATE_DAILY","PERIOD"]
[364679568,1749197464395,-496.64962129,0.00030328,7]
[364679569,1749197464405,-2000.0,0.00030328,7]
[364679570,1749197464415,-195.16024903,0.00030328,7]
[364679571,1749197464425,-331.623274,0.00030328,7]
[364679572,1749197464435,-480.0,0.00030328,7]
[364679573,1749197464445,-498.62490576,0.00030328,7]
[364679574,1749197464454,-152.50780307,0.00030328,7]
[364679575,1749197464464,-480.0,0.00030328,7]
[364679576,1749197464473,-845.77,0.00030328,7]
[364679577,1749197464484,-480.0,0.00030328,7]
[364679578,1749197464496,-331.623274,0.00030328,7]
[364679579,1749197464507,-1568.45,0.00030328,7]
[364679580,1749197464516,-480.0,0.00030328,7]
[364679581,1749197464526,-495.36474966,0.00030328,7]
[364679582,1749197464536,-480.0,0.00030328,7]
[364679583,1749197464545,-483.21197246,0.00030328,7]
[364679584,1749197464555,-685.08,0.00030328,7]
[364679585,1749197464565,-480.0,0.00030328,7]
[364679586,1749197464574,-151.0,0.00030328,7]
[364679587,1749197464584,-1963.97,0.00030328,7]
[364679588,1749197464593,-480.0,0.00030328,7]
[364679589,1749197464603,-151.0,0.00030328,7]
[364679590,1749197464613,-480.0,0.00030328,7]
[364679591,1749197464623,-480.0,0.00030328,7]
[364679592,1749197464632,-165.69601541,0.00030328,7]
[364679593,1749197464642,-449.50438927,0.00030328,7]
[364679594,1749197464652,-480.0,0.00030328,7]
[364679595,1749197464664,-1619.87,0.00030328,7]
[364679596,1749197464674,-480.0,0.00030328,7]
[364679597,1749197464684,-480.0,0.00030328,7]
[364679598,1749197464696,-480.0,0.00030328,7]
[364679599,1749197464706,-480.0,0.00030328,7]
[364679600,1749197464716,-480.0,0.00030328,7]
[364679601,1749197464726,-480.0,0.00030328,7]
[364679602,1749197464738,-480.0,0.00030328,7]
[364679603,1749197464749,-480.0,0.00030328,7]
[364679604,1749197464759,-480.0,0.00030328,7]
[364679605,1749197464770,-2063.81,0.00030328,7]
[364679606,1749197464780,-480.0,0.00030328,7]
[364679607,1749197464790,-480.0,0.00030328,7]
[364679608,1749197464800,-480.0,0.00030328,7]
[364679609,1749197464810,-480.0,0.00030328,7]
[364679610,1749197464819,-480.0,0.00030328,7]
[364679611,1749197464830,-151.0,0.00030328,7]
[364679612,1749197464839,-495.89585494,0.00030328,7]
[364679613,1749197464849,-480.0,0.00030328,7]
[364679614,1749197464859,-825.43,0.00030328,7]
[364679615,1749197464870,-480.0,0.00030328,7]
[364679616,1749197464880,-1338.49,0.00030328,7]
[364679617,1749197464890,-480.0,0.00030328,7]
[364679618,1749197464900,-151.0,0.00030328,7]
[364679619,1749197464909,-151.0,0.00030328,7]
[364679620,1749197464919,-1000.0,0.00030328,7]
[364679621,1749197464928,-1096.05,0.00030328,7]
[364679622,1749197464938,-499.96858413,0.00030328,7]
[364679623,1749197464950,-151.0,0.00030328,7]
[364679624,1749197464960,-367.44885359,0.00030328,7]
[364679625,1749197464971,-440.14668367,0.00030328,7]
[364679626,1749197464981,-489.00516933,0.00030328,7]
[364679627,1749197464991,-480.0,0.00030328,7]
[364679628,1749197465001,-480.0,0.00030328,7]
[364679629,1749197465011,-303.9669851,0.00030328,7]
[364679630,1749197465020,-151.0,0.00030328,7]
[364679631,1749197465030,-480.0,0.00030328,7]
[364679632,1749197465040,-497.77677999,0.00030328,7]
[364679633,1749197465125,-480.0,0.00030328,7]
[364679634,1749197465136,-480.0,0.00030328,7]
[364679635,1749197465145,-378.86639128,0.00030328,7]
[364679636,1749197465155,-1332.67,0.00030328,7]
[364679637,1749197465164,-728.82,0.00030328,7]
[364679638,1749197465175,-481.31054065,0.00030328,7]
[364679639,1749197465185,-279.345886,0.00030328,7]
[364679640,1749197465197,-415.89428044,0.00030328,7]
[364679641,1749197465206,-494.23,0.00030328,7]
[364679642,1749197465216,-941.87,0.00030328,7]
[364679643,1749197465226,-497.91163239,0.00030328,7]
[364679644,1749197465236,-776.15,0.00030328,7]
[364679645,1749197465245,-151.0,0.00030328,7]
[364679646,1749197465256,-480.0,0.00030328,7]
[364679647,1749197465266,-279.345886,0.00030328,7]
[364679648,1749197465276,-480.0,0.00030328,7]
[364679649,1749197465287,-151.0,0.00030328,7]
[364679650,1749197465296,-1103.59,0.00030328,7]
[364679651,1749197465306,-555.23,0.00030328,7]
[364679652,1749197465316,-480.0,0.00030328,7]
[364679653,1749197465325,-480.0,0.00030328,7]
[364679654,1749197465336,-480.0,0.00030328,7]
[364679655,1749197465345,-480.0,0.00030328,7]
[364679656,1749197465354,-480.0,0.00030328,7]
[364679657,1749197465364,-480.0,0.00030328,7]
[364679658,1749197465373,-151.0,0.00030328,7]
[364679659,1749197465383,-151.0,0.00030328,7]
[364679660,1749197465392,-480.0,0.00030328,7]
[364679661,1749197465402,-507.09387866,0.00030328,7]
[364679662,1749197465411,-480.0,0.00030328,7]
[364679663,1749197465421,-2770.23,0.00030328,7]
[364679664,1749197465431,-480.0,0.00030328,7]
[364679665,1749197465441,-480.0,0.00030328,7]
[364679666,1749197465452,-547.4,0.00030328,7]
[364679667,1749197465461,-174.639141,0.00030328,7]
[364679668,1749197465471,-480.0,0.00030328,7]
[364679669,1749197465480,-480.0,0.00030328,7]
[364679670,1749197465490,-480.0,0.00030328,7]
[364679671,1749197465499,-480.0,0.00030328,7]
[364679672,1749197465509,-480.0,0.00030328,7]
[364679673,1749197465518,-480.0,0.00030328,7]
[364679674,1749197465527,-363.83203028,0.00030328,7]
[364679675,1749197465537,-151.0,0.00030328,7]
[364679676,1749197465546,-499.91072532,0.00030328,7]
[364679677,1749197465555,-480.0,0.00030328,7]
[364679678,1749197465565,-480.0,0.00030328,7]
[364679679,1749197465576,-480.0,0.00030328,7]
[364679680,1749197465585,-480.0,0.00030328,7]
[364679681,1749197465594,-586.04108541,0.00030328,7]
[364679682,1749197465603,-529.21,0.00030328,7]
[364679683,1749197465613,-485.83058293,0.00030328,7]
[364679684,1749197465622,-480.0,0.00030328,7]
[364679685,1749197465632,-480.0,0.00030328,7]
[364679686,1749197465641,-1231.44,0.00030328,7]
[364679687,1749197465650,-480.0,0.00030328,7]
[364679688,1749197465664,-480.0,0.00030328,7]
[364679689,1749197465674,-480.0,0.00030328,7]
[364679690,1749197465683,-480.0,0.00030328,7]
[364679691,1749197465693,-480.0,0.00030328,7]
[364679692,1749197465703,-364.41992749,0.00030328,7]
[364679693,1749197465712,-802.64,0.00030328,7]
[364679694,1749197465722,-412.29498911,0.00030328,7]
[364679695,1749197465732,-480.0,0.00030328,7]
[364679696,1749197465742,-480.0,0.00030328,7]
[364679697,1749197465753,-480.0,0.00030328,7]
[364679698,1749197465762,-400.960197,0.00030328,7]
[364679699,1749197465771,-480.0,0.00030328,7]
[364679700,1749197465780,-178.15380278,0.00030328,7]
[364679701,1749197465790,-480.0,0.00030328,7]
[364679702,1749197465799,-957.68,0.00030328,7]
[364679703,1749197465808,-480.0,0.00030328,7]
[364679704,1749197465817,-400.960197,0.00030328,7]
[364679705,1749197465826,-491.41990525,0.00030328,7]
[364679706,1749197465836,-480.0,0.00030328,7]
[364679707,1749197465845,-480.0,0.00030328,7]
[364679708,1749197465854,-480.0,0.00030328,7]
[364679709,1749197465863,-483.7632258,0.00030328,7]
[364679710,1749197465874,-478.87055813,0.00030328,7]
[364679711,1749197465883,-480.0,0.00030328,7]
[364679712,1749197465893,-490.83,0.00030328,7]
[364679713,1749197465903,-480.0,0.00030328,7]
[364679714,1749197465914,-151.0,0.00030328,7]
[364679715,1749197465924,-518.73575585,0.00030328,7]
[364679716,1749197465933,-496.10760876,0.00030328,7]
[364679717,1749197465942,-151.0,0.00030328,7]
[364679718,1749197465953,-480.0,0.00030328,7]
[364679719,1749197465963,-1326.31,0.00030328,7]
[364679720,1749197465972,-2307.21,0.00030328,7]
[364679721,1749197465982,-480.0,0.00030328,7]
[364679722,1749197465991,-151.0,0.00030328,7]
[364679723,1749197466000,-1012.38,0.00030328,7]
[364679724,1749197466010,-151.0,0.00030328,7]
[364679725,1749197466019,-480.0,0.00030328,7]
[364679726,1749197466029,-658.82,0.00030328,7]
[364679727,1749197466039,-480.0,0.00030328,7]
[364679728,1749197466048,-480.0,0.00030328,7]
[364679729,1749197466058,-492.7162033,0.00030328,7]
[364679730,1749197466067,-561.45497211,0.00030328,7]
[364679731,1749197466077,-480.0,0.00030328,7]
[364679732,1749197466086,-318.55486923,0.00030328,7]
[364679733,1749197466096,-480.0,0.00030328,7]
[364679734,1749197466105,-480.0,0.00030328,7]
[364679735,1749197466115,-245.92635034,0.00030328,7]
[364679736,1749197466124,-1609.58,0.00030328,7]
[364679737,1749197466133,-480.0,0.00030328,7]
[364679738,1749197466143,-21211.33,0.00030328,7]
[364679739,1749197466152,-1000.0,0.00030328,21]
[364679740,1749197466161,-480.0,0.00030328,7]
[364679741,1749197466172,-480.0,0.00030328,7]
[364679742,1749197466182,-480.0,0.00030328,7]
[364679743,1749197466191,-480.0,0.00030328,7]
[364679744,1749197466201,-1822.56,0.00030328,7]
[364679745,1749197466211,-480.0,0.00030328,7]
[364679746,1749197466221,-480.0,0.00030328,7]
[364679747,1749197466230,-2369.76,0.00030328,7]
[364679748,1749197466240,-194.00167207,0.00030328,7]
[364679749,1749197466250,-954.48,0.00030328,7]
[364679750,1749197466259,-480.0,0.00030328,7]
[364679751,1749197466268,-3344.03,0.00030328,7]
[364679752,1749197466278,-1407.9,0.00030328,7]
[364679753,1749197466288,-1281.857807,0.00030328,7]
[364679754,1749197466297,-480.0,0.00030328,7]
[364679755,1749197466306,-480.0,0.00030328,7]
[364679756,1749197466315,-425.47665646,0.00030328,7]
[364679757,1749197466324,-491.15568339,0.00030328,7]
[364679758,1749197466333,-1281.857807,0.00030328,7]
[364679759,1749197466342,-2222.98,0.00030328,7]
[364679760,1749197466351,-636.922133,0.00030328,7]
[364679761,1749197466360,-2210.41,0.00030328,7]
[364679762,1749197466370,-374.33019022,0.00030328,7]
[364679763,1749197466379,-1433.96,0.00030328,7]
[364679764,1749197466389,-1168.31,0.00030328,7]
[364679765,1749197466398,-480.0,0.00030328,7]
[364679766,1749197466407,-480.0,0.00030328,7]
[364679767,1749197466416,-1333.62,0.00030328,7]
[364679768,1749197466424,-636.922133,0.00030328,7]
[364679769,1749197466433,-4588.71,0.00030328,7]
[364679770,1749197466442,-151.0,0.00030328,7]
[364679771,1749197466452,-2119.73,0.00030328,7]
[364679772,1749197466461,-863.97,0.00030328,7]
[364679773,1749197466471,-955.42,0.00030328,7]
[364679774,1749197466479,-151.0,0.00030328,7]
[364679775,1749197466489,-480.0,0.00030328,7]
[364679776,1749197466498,-486.97249371,0.00030328,7]
[364679777,1749197466509,-480.0,0.00030328,7]
[364679778,1749197466518,-2723.64,0.00030328,7]
[364679779,1749197466528,-480.0,0.00030328,7]
[364679780,1749197466537,-480.0,0.00030328,7]
[364679781,1749197466547,-480.0,0.00030328,7]
[364679782,1749197466555,-244.21473,0.00030328,7]
[364679783,1749197466564,-2057.71,0.00030328,7]
[364679784,1749197466574,-830.5,0.00030328,7]
[364679785,1749197466583,-151.0,0.00030328,7]
[364679786,1749197466593,-771.51,0.00030328,7]
[364679787,1749197466603,-524.63,0.00030328,7]
[364679788,1749197466613,-244.21473,0.00030328,7]
[364679789,1749197466623,-1510.55,0.00030328,7]
[364679790,1749197466632,-480.0,0.00030328,7]
[364679791,1749197466643,-3222.48,0.00030328,7]
[364679792,1749197466655,-2530.07,0.00030328,7]
[364679793,1749197466668,-1178.3,0.00030328,7]
[364679794,1749197466679,-480.0,0.00030328,7]
[364679795,1749197466689,-2377.35,0.00030328,7]
[364679796,1749197466699,-4150.0,0.00030328,7]
[364679797,1749197466711,-480.0,0.00030328,7]
[364679798,1749197466721,-872.38,0.00030328,7]
[364679799,1749197466732,-493.49720117,0.00030328,7]
[364679800,1749197466741,-480.0,0.00030328,7]
[364679801,1749197466750,-480.0,0.00030328,7]
[364679802,1749197466759,-480.0,0.00030328,7]
[364679803,1749197466768,-480.0,0.00030328,7]
[364679804,1749197466777,-1973.05,0.00030328,7]
[364679805,1749197466786,-2396.18,0.00030328,7]
[364679806,1749197466795,-3870.48,0.00030328,7]
[364679807,1749197466804,-480.0,0.00030328,7]
[364679808,1749197466813,-1978.82,0.00030328,7]
[364679809,1749197466824,-151.0,0.00030328,7]
[364679810,1749197466834,-678.48,0.00030328,7]
[364679811,1749197466844,-151.0,0.00030328,7]
[364679812,1749197466855,-2434.52,0.00030328,7]
[364679813,1749197466864,-320.522805,0.00030328,7]
[364679814,1749197466873,-639.4,0.00030328,7]
[364679815,1749197466882,-492.7264161,0.00030328,7]
[364679816,1749197466892,-2932.21,0.00030328,7]
[364679817,1749197466902,-480.0,0.00030328,7]
[364679818,1749197466912,-480.0,0.00030328,7]
[364679819,1749197466923,-480.0,0.00030328,7]
[364679820,1749197466934,-539.04,0.00030328,7]
[364679821,1749197466944,-936.41,0.00030328,7]
[364679822,1749197466954,-865.76,0.00030328,7]
[364679823,1749197466964,-480.0,0.00030328,7]
[364679824,1749197466974,-480.0,0.00030328,7]
[364679825,1749197466983,-480.0,0.00030328,7]
[364679826,1749197466994,-151.0,0.00030328,7]
[364679827,1749197467004,-1931.15,0.00030328,7]
[364679828,1749197467014,-480.0,0.00030328,7]
[364679829,1749197467023,-480.0,0.00030328,7]
[364679830,1749197467033,-480.0,0.00030328,7]
[364679831,1749197467042,-422.3138648,0.00030328,7]
[364679832,1749197467053,-480.0,0.00030328,7]
[364679833,1749197467062,-574.808789,0.00030328,7]
[364679834,1749197467072,-1682.34,0.00030328,7]
[364679835,1749197467082,-151.0,0.00030328,7]
[364679836,1749197467092,-1187.82,0.00030328,7]
[364679837,1749197467102,-480.0,0.00030328,7]
[364679838,1749197467112,-2424.75,0.00030328,7]
[364679839,1749197467121,-1758.02,0.00030328,7]
[364679840,1749197467131,-665.52,0.00030328,7]
[364679841,1749197467141,-11346.31,0.00030328,7]
[364679842,1749197467151,-480.0,0.00030328,7]
[364679843,1749197467161,-2151.68,0.00030328,7]
[364679844,1749197467171,-151.0,0.00030328,7]
[364679845,1749197467181,-914.37,0.00030328,7]
[364679846,1749197467191,-251.445257,0.00030328,7]
[364679847,1749197467202,-151.0,0.00030328,7]
[364679848,1749197467211,-480.0,0.00030328,7]
[364679849,1749197467221,-151.0,0.00030328,7]
[364679850,1749197467231,-480.0,0.00030328,7]
[364679851,1749197467240,-480.0,0.00030328,7]
[364679852,1749197467250,-5483.59,0.00030328,7]
[364679853,1749197467259,-480.0,0.00030328,7]
[364679854,1749197467269,-1421.96,0.00030328,7]
[364679855,1749197467278,-4390.51,0.00030328,7]
[364679856,1749197467288,-1257.03,0.00030328,7]
[364679857,1749197467298,-614.49,0.00030328,7]
[364679858,1749197467307,-480.0,0.00030328,7]
[364679859,1749197467317,-480.0,0.00030328,7]
[364679860,1749197467327,-480.0,0.00030328,7]
[364679861,1749197467337,-480.0,0.00030328,7]
[364679862,1749197467347,-487.95206151,0.00030328,7]
[364679863,1749197467357,-798.01,0.00030328,30]
[364679864,1749197467367,-480.0,0.00030328,7]
[364679865,1749197467377,-2006.46,0.00030328,7]
[364679866,1749197467387,-480.0,0.00030328,7]
[364679867,1749197467398,-1950.14,0.00030328,7]
[364679868,1749197467408,-1000.0,0.00030328,7]
[364679869,1749197467417,-399.591324,0.00030328,7]
[364679870,1749197467428,-480.0,0.00030328,7]
[364679871,1749197467438,-1739.03,0.00030328,7]
[364679872,1749197467448,-662.65,0.00030328,7]
[364679873,1749197467457,-1412.62,0.00030328,7]
[364679874,1749197467467,-665.09,0.00030328,7]
[364679875,1749197467477,-480.0,0.00030328,7]
[364679876,1749197467486,-210.943889,0.00030328,7]
[364679877,1749197467496,-480.0,0.00030328,7]
[364679878,1749197467505,-1527.49,0.00030328,7]
[364679879,1749197467515,-1479.06,0.00030328,7]
[364679880,1749197467525,-2218.6,0.00030328,7]
[364679881,1749197467535,-480.0,0.00030328,7]
[364679882,1749197467545,-1061.57,0.00030328,7]
[364679883,1749197467555,-480.0,0.00030328,7]
[364679884,1749197467564,-1908.77,0.00030328,7]
[364679885,1749197467574,-2387.99,0.00030328,7]
[364679886,1749197467585,-151.0,0.00030328,7]
[364679887,1749197467595,-480.0,0.00030328,7]
[364679888,1749197467604,-453.537922,0.00030328,7]
[364679889,1749197467616,-480.0,0.00030328,7]
[364679890,1749197467626,-480.0,0.00030328,7]
[364679891,1749197467636,-2685.06,0.00030328,7]
[364679892,1749197467645,-1102.24,0.00030328,7]
[364679893,1749197467656,-1166.4,0.00030328,7]
[364679894,1749197467667,-557.21,0.00030328,7]
[364679895,1749197467677,-480.0,0.00030328,7]
[364679896,1749197467686,-1597.01,0.00030328,7]
[364679897,1749197467697,-453.537922,0.00030328,7]
[364679898,1749197467707,-577.15,0.00030328,7]
[364679899,1749197467717,-480.0,0.00030328,7]
[364679900,1749197467727,-480.0,0.00030328,7]
[364679901,1749197467738,-151.0,0.00030328,7]
[364679902,1749197467749,-480.0,0.00030328,7]
[364679903,1749197467758,-480.0,0.00030328,7]
[364679904,1749197467768,-298.394027,0.00030328,7]
[364679905,1749197467778,-151.0,0.00030328,7]
[364679906,1749197467788,-151.0,0.00030328,7]
[364679907,1749197467798,-2026.78,0.00030328,7]
[364679908,1749197467807,-187.226475,0.00030328,7]
[364679909,1749197467817,-1382.41,0.00030328,7]
[364679910,1749197467827,-17017.79,0.00030328,7]
[364679911,1749197467837,-480.0,0.00030328,7]
[364679912,1749197467846,-819.62,0.00030328,7]
[364679913,1749197467856,-2463.45,0.00030328,7]
[364679914,1749197467866,-2048.22,0.00030328,7]
[364679915,1749197467876,-649.09,0.00030328,7]
[364679916,1749197467886,-151.0,0.00030328,7]
[364679917,1749197467896,-305.3140483,0.00030328,7]
[364679918,1749197467906,-480.0,0.00030328,7]
[364679919,1749197467916,-151.0,0.00030328,7]
[364679920,1749197467925,-5024.74,0.00030328,7]
[364679921,1749197467935,-3269.76,0.00030328,7]
[364679922,1749197467944,-480.0,0.00030328,7]
[364679923,1749197467955,-2056.04,0.00030328,7]
[364679924,1749197467965,-480.0,0.00030328,7]
[364679925,1749197467974,-480.0,0.00030328,7]
[364679926,1749197467984,-480.0,0.00030328,7]
[364679927,1749197467994,-1907.45,0.00030328,7]
[364679928,1749197468004,-480.0,0.00030328,7]
[364679929,1749197468014,-4171.06,0.00030328,7]
[364679930,1749197468024,-489.6966209,0.00030328,7]
[364679931,1749197468033,-984.05,0.00030328,7]
[364679932,1749197468043,-480.0,0.00030328,7]
[364679933,1749197468053,-2602.39,0.00030328,7]
[364679934,1749197468063,-6201.95,0.00030328,7]
[364679935,1749197468073,-480.0,0.00030328,7]
[364679936,1749197468083,-908.14,0.00030328,7]
[364679937,1749197468092,-2121.81,0.00030328,7]
[364679938,1749197468102,-339.050092,0.00030328,7]
[364679939,1749197468111,-238.622857,0.00030328,7]
[364679940,1749197468121,-1074.2,0.00030328,7]
[364679941,1749197468131,-480.0,0.00030328,7]
[364679942,1749197468140,-2106.24,0.00030328,7]
[364679943,1749197468150,-480.0,0.00030328,7]
[364679944,1749197468160,-173.3506,0.00030328,7]
[364679945,1749197468170,-12037.38,0.00030328,7]
[364679946,1749197468180,-2112.72,0.00030328,7]
[364679947,1749197468191,-1527.84,0.00030328,7]
[364679948,1749197468202,-848.41,0.00030328,7]
[364679949,1749197468212,-1014.46,0.00030328,7]
[364679950,1749197468222,-339.050092,0.00030328,7]
[364679951,1749197468232,-480.0,0.00030328,7]
[364679952,1749197468243,-1829.73,0.00030328,7]
[364679953,1749197468252,-480.0,0.00030328,7]
[364679954,1749197468265,-1374.66,0.00030328,7]
[364679955,1749197468275,-480.0,0.00030328,7]
[364679956,1749197468287,-151.0,0.00030328,7]
[364679957,1749197468297,-480.0,0.00030328,7]
[364679958,1749197468307,-349.87284178,0.00030328,7]
[364679959,1749197468317,-3874.69,0.00030328,7]
[364679960,1749197468327,-1526.25,0.00030328,2]
[364679961,1749197468337,-894.72,0.00030328,7]
[364679962,1749197468347,-480.0,0.00030328,7]
[364679963,1749197468356,-480.0,0.00030328,7]
[364679964,1749197468366,-480.0,0.00030328,7]
[364679965,1749197468375,-151.0,0.00030328,7]
[364679966,1749197468385,-1071.48,0.00030328,7]
[364679967,1749197468395,-151.0,0.00030328,7]
[364679968,1749197468406,-1415.9,0.00030328,7]
[364679969,1749197468416,-480.0,0.00030328,7]
[364679970,1749197468427,-10675.65,0.00030328,7]
[364679971,1749197468438,-151.0,0.00030328,7]
[364679972,1749197468449,-480.0,0.00030328,7]
[364679973,1749197468459,-6223.16,0.00030328,7]
[364679974,1749197468468,-954.54,0.00030328,7]
[364679975,1749197468479,-151.0,0.00030328,7]
[364679976,1749197468489,-480.0,0.00030328,7]
[364679977,1749197468498,-203.528443,0.00030328,7]
[364679978,1749197468508,-1264.89,0.00030328,7]
[364679979,1749197468517,-484.69207752,0.00030328,7]
[364679980,1749197468527,-892.65,0.00030328,7]
[364679981,1749197468537,-488.59716867,0.00030328,7]
[364679982,1749197468552,-229.42916,0.00030328,7]
[364679983,1749197468568,-480.0,0.00030328,7]
[364679984,1749197468578,-1334.57,0.00030328,7]
[364679985,1749197468590,-160.506943,0.00030328,7]
[364679986,1749197468600,-5244.54,0.00030328,7]
[364679987,1749197468610,-1745.74,0.00030328,7]
[364679988,1749197468621,-690.02,0.00030328,7]
[364679989,1749197468631,-229.42916,0.00030328,7]
[364679990,1749197468642,-480.0,0.00030328,7]
[364679991,1749197468652,-5331.78,0.00030328,7]
[364679992,1749197468666,-480.0,0.00030328,7]
[364679993,1749197468676,-480.0,0.00030328,7]
[364679994,1749197468686,-487.88626891,0.00030328,7]
[364679995,1749197468697,-577.1,0.00030328,7]
[364679996,1749197468709,-480.0,0.00030328,7]
[364679997,1749197468720,-1846.69,0.00030328,7]
[364679998,1749197468730,-151.0,0.00030328,7]
[364679999,1749197468743,-151.0,0.00030328,7]
[364680000,1749197468754,-480.0,0.00030328,7]
[364680001,1749197468764,-480.0,0.00030328,7]
[364680002,1749197468774,-417.096075,0.00030328,7]
[364680003,1749197468785,-480.0,0.00030328,7]
[364680004,1749197468795,-480.0,0.00030328,7]
[364680005,1749197468805,-480.0,0.00030328,7]
[364680006,1749197468816,-1324.34,0.00030328,7]
[364680007,1749197468827,-480.0,0.00030328,7]
[364680008,1749197468837,-265.507238,0.00030328,7]
[364680009,1749197468847,-480.0,0.00030328,7]
[364680010,1749197468858,-480.0,0.00030328,7]
[364680011,1749197468868,-1485.03,0.00030328,7]
[364680012,1749197468878,-480.0,0.00030328,7]
[364680013,1749197468888,-183.11684,0.00030328,7]
[364680014,1749197468899,-480.0,0.00030328,7]
[364680015,1749197468909,-480.0,0.00030328,7]
[364680016,1749197468919,-854.68,0.00030328,7]
[364680017,1749197468929,-480.0,0.00030328,7]
[364680018,1749197468939,-480.0,0.00030328,7]
[364680019,1749197468950,-263.16208349,0.00030328,7]
[364680020,1749197468960,-1593.16,0.00030328,7]
[364680021,1749197468971,-1410.64,0.00030328,7]
[364680022,1749197468980,-1207.83,0.00030328,7]
[364680023,1749197468991,-460.0,0.00030328,7]
[364680024,1749197469001,-1613.92,0.00030328,7]
[364680025,1749197469011,-2043.06,0.00030328,7]
[364680026,1749197469022,-480.0,0.00030328,7]
[364680027,1749197469033,-480.0,0.00030328,7]
[364680028,1749197469044,-238.26929,0.00030328,7]
[364680029,1749197469056,-238.26929,0.00030328,7]
[364680030,1749197469066,-480.0,0.00030328,7]
[364680031,1749197469076,-151.0,0.00030328,7]
[364680032,1749197469087,-480.0,0.00030328,7]
[364680033,1749197469099,-480.0,0.00030328,7]
[364680034,1749197469321,-480.0,0.00030328,7]
[364680035,1749197469331,-480.0,0.00030328,7]
[364680036,1749197469341,-1285.47,0.00030328,7]
[364680037,1749197469350,-238.26929,0.00030328,7]
[364680038,1749197469359,-2497.24,0.00030328,7]
[364680039,1749197469368,-238.26929,0.00030328,7]
[364680040,1749197469378,-480.0,0.00030328,7]
[364680041,1749197469387,-722.221235,0.00030328,7]
[364680042,1749197469397,-480.0,0.00030328,7]
[364680043,1749197469406,-1896.04,0.00030328,7]
[364680044,1749197469416,-732.66,0.00030328,7]
[364680045,1749197469425,-480.0,0.00030328,7]
[364680046,1749197469435,-480.0,0.00030328,7]
[364680047,1749197469444,-480.0,0.00030328,7]
[364680048,1749197469454,-735.38,0.00030328,7]
[364680049,1749197469464,-1631.58,0.00030328,7]
[364680050,1749197469475,-480.0,0.00030328,7]
[364680051,1749197469484,-721.27,0.00030328,7]
[364680052,1749197469493,-1408.84,0.00030328,7]
[364680053,1749197469502,-480.0,0.00030328,7]
[364680054,1749197469513,-1252.03,0.00030328,7]
[364680055,1749197469524,-749.27,0.00030328,7]
[364680056,1749197469533,-851.11,0.00030328,7]
[364680057,1749197469543,-502.097597,0.00030328,7]
[364680058,1749197469553,-502.097597,0.00030328,7]
[364680059,1749197469563,-261.289873,0.00030328,7]
[364680060,1749197469572,-480.0,0.00030328,7]
[364680061,1749197469582,-4575.79,0.00030328,7]
[364680062,1749197469592,-1393.37,0.00030328,7]
[364680063,1749197469601,-1003.28,0.00030328,7]
[364680064,1749197469611,-502.097597,0.00030328,7]
[364680065,1749197469620,-480.0,0.00030328,7]
[364680066,1749197469630,-502.097597,0.00030328,7]
[364680067,1749197469639,-2684.8,0.00030328,7]